bitfinex/quotes_BTCUSD_20230404
["timestamp","ask_amount","ask_price","bid_price","bid_amount"]
[1680650771040,2.50035044,28119.0,28118.0,0.65165607]
[1680650771291,2.52735044,28119.0,28118.0,0.65165607]
[1680650771525,2.35652287,28119.0,28118.0,0.65165607]
[1680650772065,2.17871287,28119.0,28118.0,0.65165607]
[1680650772813,2.13648654,28119.0,28118.0,0.65165607]
[1680650773628,2.10948654,28119.0,28118.0,0.65165607]
[1680650773926,2.34742212,28119.0,28118.0,0.65165607]
[1680650774747,2.13648654,28119.0,28118.0,0.65165607]
[1680650774982,2.34742212,28119.0,28118.0,0.65165607]
[1680650775890,2.17871287,28119.0,28118.0,0.49581941]
[1680650778654,1.9521083,28119.0,28118.0,0.49581941]
[1680650781578,1.5709083,28119.0,28118.0,0.49581941]
[1680650781803,1.57106763,28119.0,28118.0,0.49581941]
[1680650783824,1.35997272,28119.0,28118.0,0.49581941]
[1680650789575,1.61403216,28119.0,28118.0,0.49581941]
[1680650790045,1.35997272,28119.0,28118.0,0.49581941]
[1680650790262,1.56611394,28119.0,28118.0,0.49581941]
[1680650791805,1.35976272,28119.0,28118.0,0.49587941]
[1680650792239,1.19584713,28119.0,28118.0,0.49599941]
[1680650792242,1.1958472,28119.0,28118.0,0.49599941]
[1680650792473,1.1458412,28119.0,28118.0,0.49599941]
[1680650792703,1.1932372,28119.0,28118.0,0.49599941]
[1680650793602,1.34047716,28119.0,28118.0,0.49599941]
[1680650794073,1.64047716,28119.0,28118.0,0.49599941]
[1680650794502,1.64068716,28119.0,28118.0,0.49581941]
[1680650795408,1.64047716,28119.0,28118.0,0.49599941]
[1680650796781,1.64068716,28119.0,28118.0,0.49581941]
[1680650797511,1.64047716,28119.0,28118.0,0.49599941]
[1680650798828,1.64068716,28119.0,28118.0,0.49581941]
[1680650799032,1.64047716,28119.0,28118.0,0.49599941]
[1680650799843,1.71637716,28119.0,28118.0,0.49599941]
[1680650802115,1.71658716,28119.0,28118.0,0.49581941]
[1680650802334,1.71637716,28119.0,28118.0,0.49599941]
[1680650804484,1.71137716,28119.0,28118.0,0.49599941]
[1680650804686,1.5641372,28119.0,28118.0,0.49599941]
[1680650807025,1.5167412,28119.0,28118.0,0.49599941]
[1680650807248,1.5633132,28119.0,28118.0,0.49599941]
[1680650811867,1.35192872,28119.0,28118.0,0.49599941]
[1680650817025,1.55743654,28119.0,28118.0,0.49599941]
[1680650819676,1.35192872,28119.0,28118.0,0.49599941]
[1680650824322,1.30535672,28119.0,28118.0,0.49599941]
[1680650824572,1.35259672,28119.0,28118.0,0.49599941]
[1680650825250,1.35280672,28119.0,28118.0,0.49581941]
[1680650825469,1.35259672,28119.0,28118.0,0.49599941]
[1680650825694,1.30535672,28119.0,28118.0,0.49599941]
[1680650826367,1.27876072,28119.0,28118.0,0.49599941]
[1680650827301,1.25176072,28119.0,28118.0,0.49599941]
[1680650828444,1.27876072,28119.0,28118.0,0.49599941]
[1680650828660,1.25176072,28119.0,28118.0,0.49599941]
[1680650828897,1.27897072,28119.0,28118.0,0.49573561]
[1680650829161,1.42865502,28119.0,28118.0,0.83867956]
[1680650829381,1.36520202,28119.0,28118.0,0.83867956]
[1680650829610,1.5344268,28119.0,28118.0,0.49573561]
[1680650830052,1.5342168,28119.0,28118.0,0.49591561]
[1680650831661,1.5342168,28119.0,28118.0,0.76848602]
[1680650831662,0.81257534,28119.0,28118.0,0.76848602]
[1680650831901,0.53854207,28119.0,28118.0,0.76848602]
[1680650832138,0.41162336,28119.0,28118.0,0.77932702]
[1680650832364,0.41162336,28119.0,28118.0,0.76848602]
[1680650832577,0.41162336,28119.0,28118.0,0.77927002]
[1680650832795,0.38462336,28119.0,28118.0,0.77927002]
[1680650833068,0.39262336,28119.0,28118.0,0.78027002]
[1680650833293,0.308,28119.0,28118.0,0.78027002]
[1680650834868,0.008,28119.0,28118.0,0.78027002]
[1680650837282,0.008,28119.0,28118.0,0.95627002]
[1680650838396,0.08462336,28121.0,28119.0,0.1]
[1680650838612,0.08462336,28121.0,28120.0,0.007794]
[1680650838827,0.08462336,28121.0,28120.0,0.007974]
[1680650839044,0.08462336,28121.0,28120.0,0.41869494]
[1680650839262,0.08462336,28121.0,28120.0,0.42913894]
[1680650839944,0.38462336,28123.0,28120.0,0.50513894]
[1680650840164,0.38462336,28123.0,28121.0,0.108132]
[1680650840385,0.38462336,28123.0,28121.0,0.00018]
[1680650840603,0.38462336,28123.0,28120.0,0.41869494]
[1680650841043,0.38462336,28123.0,28121.0,0.010364]
[1680650841264,0.38462336,28123.0,28121.0,0.010544]
[1680650841484,0.38462336,28123.0,28121.0,0.43611897]
[1680650841485,0.321,28123.0,28121.0,0.43611897]
[1680650841702,0.321,28123.0,28122.0,0.44248442]
[1680650841923,0.3,28123.0,28122.0,0.44266442]
[1680650842188,0.301,28123.0,28122.0,0.44266442]
[1680650842631,0.001,28123.0,28122.0,0.44266442]
[1680650842852,0.23474207,28126.0,28122.0,0.52953142]
[1680650843073,0.008,28123.0,28122.0,0.58556123]
[1680650843284,0.008,28123.0,28122.0,0.52929142]
[1680650844630,0.008,28123.0,28122.0,0.102808]
[1680650844857,0.008,28123.0,28122.0,0.178808]
[1680650845094,0.008,28123.0,28122.0,0.678808]
[1680650845534,0.008,28123.0,28122.0,0.778808]
[1680650845759,0.02299,28126.0,28122.0,0.777808]
[1680650846003,0.02299,28126.0,28125.0,0.076]
[1680650846231,0.02299,28126.0,28125.0,0.086436]
[1680650846677,0.02299,28126.0,28125.0,0.43690707]
[1680650847337,0.02299,28126.0,28125.0,0.36090707]
[1680650847568,0.02299,28126.0,28125.0,0.37690707]
[1680650847788,0.02399,28126.0,28125.0,0.36790707]
[1680650848442,0.02399,28126.0,28125.0,0.38390707]
[1680650848712,0.02399,28126.0,28125.0,0.36790707]
[1680650848934,0.02399,28126.0,28125.0,0.38390707]
[1680650849150,0.02399,28126.0,28125.0,0.117136]
[1680650849584,0.02399,28126.0,28125.0,0.5017869]
[1680650849800,0.02399,28126.0,28125.0,0.117136]
[1680650850296,0.02387785,28126.0,28125.0,0.116956]
[1680650850516,0.02387785,28126.0,28125.0,1.02363656]
[1680650851383,0.02387785,28126.0,28125.0,1.03213656]
[1680650852920,0.02299,28128.0,28127.0,0.8742]
[1680650853141,0.02299,28128.0,28127.0,1.43281456]
[1680650853575,0.02299,28128.0,28127.0,1.51631456]
[1680650854069,0.02499,28128.0,28127.0,1.54381456]
[1680650854286,0.02299,28128.0,28127.0,1.52481456]
[1680650854513,0.02499,28128.0,28127.0,1.54381456]
[1680650854947,0.02299,28128.0,28127.0,1.52481456]
[1680650855163,0.02499,28128.0,28127.0,1.54381456]
[1680650856514,0.02499,28128.0,28127.0,1.54381456]
[1680650858598,0.02499,28128.0,28127.0,1.72381456]
[1680650859444,0.02499,28128.0,28127.0,1.65981956]
[1680650859662,0.02499,28128.0,28127.0,1.95981956]
[1680650859870,0.02499,28128.0,28127.0,2.28091956]
[1680650861111,0.02499,28128.0,28127.0,2.45864956]
[1680650861655,0.02499,28128.0,28127.0,2.13844956]
[1680650862857,0.02499,28128.0,28127.0,1.91272456]
[1680650863088,0.02299,28129.0,28128.0,1.86494561]
[1680650863339,0.02299,28129.0,28128.0,2.62271017]
[1680650864330,0.02299,28129.0,28128.0,2.63870817]
[1680650864541,0.02299,28129.0,28128.0,2.62271017]
[1680650864762,0.02399,28129.0,28128.0,2.64371017]
[1680650867095,0.02399,28129.0,28128.0,2.65970817]
[1680650867869,0.02399,28129.0,28128.0,2.64371017]
[1680650868305,0.02399,28129.0,28128.0,3.02534444]
[1680650868523,0.02399,28129.0,28128.0,2.91684444]
[1680650868743,0.02399,28129.0,28128.0,2.53521017]
[1680650869813,0.02399,28129.0,28128.0,2.45091017]
[1680650871779,0.02399,28129.0,28128.0,2.85066856]
[1680650872022,0.02399,28129.0,28128.0,2.45091017]
[1680650874641,0.02399,28129.0,28128.0,1.41454862]
[1680650875295,0.02399,28129.0,28128.0,1.05983806]
[1680650877668,0.02399,28129.0,28128.0,0.68563806]
[1680650877919,0.036432,28129.0,28128.0,0.31174561]
[1680650878582,0.036642,28129.0,28128.0,0.31174561]
[1680650878802,0.035642,28129.0,28128.0,0.29074561]
[1680650879019,0.037642,28129.0,28128.0,0.30974561]
[1680650879291,0.035642,28129.0,28128.0,0.29074561]
[1680650879526,0.47465256,28129.0,28128.0,0.29074561]
[1680650879714,0.52148656,28129.0,28128.0,0.29074561]
[1680650880185,0.52148656,28129.0,28128.0,0.29474561]
[1680650880186,0.46754456,28129.0,28128.0,0.29474561]
[1680650880414,0.85679832,28129.0,28128.0,0.16434561]
[1680650880630,0.85679832,28129.0,28128.0,0.16634561]
[1680650880631,0.89152589,28129.0,28128.0,0.16634561]
[1680650880854,0.87452589,28129.0,28128.0,0.16434561]
[1680650881102,0.87452589,28129.0,28128.0,0.002]
[1680650881103,0.72667028,28129.0,28128.0,0.002]
[1680650881326,0.72667028,28129.0,28127.0,0.18]
[1680650881327,1.08387028,28129.0,28127.0,0.18]
[1680650881550,1.39513464,28128.0,28127.0,0.18]
[1680650881790,1.566859,28128.0,28127.0,0.18]
[1680650882029,1.58509657,28128.0,28127.0,0.18]
[1680650883383,1.64439192,28128.0,28127.0,0.182]
[1680650883825,1.7287865,28128.0,28127.0,0.182]
[1680650884251,1.72878581,28128.0,28127.0,0.182]
[1680650884522,1.6018671,28128.0,28127.0,0.182]
[1680650885248,1.64439192,28128.0,28127.0,0.182]
[1680650887011,1.72880323,28128.0,28127.0,0.182]
[1680650887439,1.64439192,28128.0,28127.0,0.182]
[1680650888780,1.72882436,28128.0,28127.0,0.182]
[1680650890112,1.64439192,28128.0,28127.0,0.182]
[1680650890780,1.58417409,28128.0,28127.0,0.182]
[1680650892568,0.97409356,28128.0,28127.0,0.182]
[1680650892998,0.97358356,28128.0,28127.0,0.182]
[1680650893209,0.97409356,28128.0,28127.0,0.182]
[1680650895381,1.54359591,28128.0,28124.0,6e-05]
[1680650895596,1.54359591,28128.0,28118.0,0.00018]
[1680650895597,0.2679,28125.0,28118.0,0.00018]
[1680650895823,0.0843,28119.0,28118.0,0.00018]
[1680650896042,0.169898,28119.0,28118.0,0.00018]
[1680650896481,0.169898,28119.0,28117.0,0.00018]
[1680650896705,0.133122,28118.0,28116.0,0.00018]
[1680650896921,0.012447,28117.0,28116.0,0.00018]
[1680650897362,0.012447,28117.0,28116.0,0.43371279]
[1680650897600,0.012447,28117.0,28116.0,0.43353279]
[1680650898369,0.026447,28117.0,28116.0,0.43365279]
[1680650898627,0.026447,28117.0,28116.0,0.61371279]
[1680650898881,0.026447,28117.0,28116.0,0.18018]
[1680650900277,0.026447,28117.0,28116.0,0.00018]
[1680650902315,0.026447,28117.0,28115.0,0.35116204]
[1680650902996,0.026447,28117.0,28115.0,0.35134204]
[1680650903660,0.012447,28117.0,28115.0,0.35134204]
[1680650904114,0.026447,28117.0,28116.0,0.38848121]
[1680650904354,0.026447,28117.0,28116.0,0.38866121]
[1680650905022,0.012447,28117.0,28116.0,0.38866121]
[1680650905240,0.032447,28117.0,28116.0,0.38866121]
[1680650905755,0.02,28117.0,28116.0,0.38866121]
[1680650905979,0.02,28117.0,28116.0,0.39876621]
[1680650906426,0.012447,28119.0,28116.0,0.39876621]
[1680650906675,0.001,28117.0,28116.0,0.00018]
[1680650906924,0.012447,28118.0,28117.0,0.45442267]
[1680650907187,0.012447,28118.0,28117.0,0.45460267]
[1680650908296,0.019447,28118.0,28117.0,0.45460267]
[1680650909150,0.012447,28118.0,28117.0,0.45460267]
[1680650909375,0.019447,28118.0,28117.0,0.45460267]
[1680650910548,0.012447,28118.0,28117.0,0.45460267]
[1680650910787,0.019447,28118.0,28117.0,0.45460267]
[1680650912171,0.044342,28118.0,28117.0,0.45460267]
[1680650914366,0.48788676,28118.0,28117.0,0.00018]
[1680650914603,0.48788676,28118.0,28116.0,0.00018]
[1680650914604,0.52909556,28118.0,28116.0,0.00018]
[1680650914851,0.78733656,28117.0,28116.0,0.00018]
[1680650915088,0.79978356,28117.0,28116.0,0.00018]
[1680650916279,0.82678356,28117.0,28116.0,0.00018]
[1680650916533,0.0844,28116.0,28115.0,0.00018]
[1680650916761,0.0844,28116.0,28112.0,0.00018]
[1680650916762,0.65848656,28116.0,28112.0,0.00018]
[1680650916982,0.0844,28113.0,28112.0,0.00018]
[1680650917202,0.57513756,28113.0,28112.0,0.00018]
[1680650918493,0.60213756,28113.0,28112.0,0.00018]
[1680650918727,0.51773756,28113.0,28111.0,0.0209]
[1680650918943,0.216514,28112.0,28111.0,0.0209]
[1680650919164,0.228964,28112.0,28111.0,0.0209]
[1680650919381,0.18025,28112.0,28111.0,0.0209]
[1680650919611,0.229994,28112.0,28111.0,0.0209]
[1680650919835,0.01245,28112.0,28111.0,0.0209]
[1680650920755,0.03945,28112.0,28111.0,0.0209]
[1680650920989,0.03945,28112.0,28111.0,0.44590239]
[1680650921205,0.03945,28112.0,28111.0,0.44608239]
[1680650922072,0.03945,28112.0,28111.0,0.2592057]
[1680650926573,0.03945,28112.0,28110.0,0.02108]
[1680650926719,0.03945,28112.0,28110.0,0.0209]
[1680650927577,0.01245,28112.0,28110.0,0.4646499]
[1680650927775,0.03245,28112.0,28110.0,0.4646499]
[1680650929502,0.03245,28112.0,28111.0,0.010027]
[1680650929714,0.03245,28112.0,28110.0,0.4646499]
[1680650931457,0.16411606,28112.0,28110.0,0.4646499]
[1680650937385,0.16411606,28112.0,28110.0,0.0209]
[1680650937603,0.13745356,28111.0,28110.0,0.0209]
[1680650937845,0.17480456,28111.0,28110.0,0.0209]
[1680650938663,0.27890456,28111.0,28110.0,0.0209]
[1680650939901,0.19480456,28111.0,28110.0,0.0209]
[1680650940315,0.03245,28111.0,28110.0,0.0209]
[1680650940518,0.03245,28111.0,28110.0,0.36108367]
[1680650940743,0.03245,28111.0,28110.0,0.35115767]
[1680650940956,0.03245,28111.0,28110.0,0.36105567]
[1680650941167,0.03245,28111.0,28110.0,0.35115767]
[1680650941376,0.03245,28111.0,28110.0,0.0209]
[1680650943032,0.03235149,28111.0,28110.0,0.0209]
[1680650943250,0.03192361,28111.0,28110.0,0.0209]
[1680650948264,0.03192361,28111.0,28110.0,0.47501723]
[1680650948476,0.03192361,28111.0,28110.0,0.48546823]
[1680650948698,0.03192361,28111.0,28110.0,0.47501723]
[1680650948911,0.03192361,28111.0,28110.0,0.48522923]
[1680650950026,0.03192361,28111.0,28110.0,0.47501723]
[1680650950263,0.151747,28111.0,28110.0,0.0209]
[1680650953543,0.03192361,28111.0,28110.0,0.0209]
[1680650954156,0.17907796,28111.0,28110.0,0.0209]
[1680650955397,0.17864981,28111.0,28110.0,0.0209]
[1680650957296,0.25464981,28111.0,28110.0,0.0209]
[1680650959059,0.65513337,28111.0,28110.0,0.0209]
[1680650960152,0.63608791,28111.0,28110.0,0.0209]
[1680650961053,0.66308791,28111.0,28110.0,0.0209]
[1680650961270,0.63608791,28111.0,28110.0,0.0209]
[1680650961478,0.66308791,28111.0,28110.0,0.0209]
[1680650963638,0.61731491,28111.0,28110.0,0.0209]
[1680650964316,0.60486491,28111.0,28110.0,0.0209]
[1680650964530,0.61731491,28111.0,28110.0,0.0209]
[1680650966308,0.61688676,28111.0,28110.0,0.0209]
[1680650970020,0.61739676,28111.0,28110.0,0.0209]
[1680650970239,0.61688676,28111.0,28110.0,0.0209]
[1680650970688,0.103,28111.0,28110.0,0.02077498]
[1680650970902,0.027,28111.0,28110.0,0.40611727]
[1680650971621,0.027,28111.0,28110.0,0.50611727]
[1680650972285,0.07651,28114.0,28110.0,0.50611727]
[1680650972524,0.076,28114.0,28111.0,0.008362]
[1680650972744,0.07651,28114.0,28112.0,0.010225]
[1680650973165,0.07651,28114.0,28111.0,0.1]
[1680650973383,0.22560757,28114.0,28111.0,0.1]
[1680650974247,0.22660757,28114.0,28111.0,0.1]
[1680650974454,0.22660757,28114.0,28111.0,0.43352751]
[1680650974622,0.22660757,28114.0,28110.0,0.12077498]
[1680650974623,0.15357145,28113.0,28110.0,0.02077498]
[1680650974853,0.076,28111.0,28110.0,0.02077498]
[1680650975055,0.08845,28111.0,28110.0,0.02077498]
[1680650977352,0.09545,28111.0,28110.0,0.02077498]
[1680650977614,0.08845,28111.0,28110.0,0.02077498]
[1680650977785,0.10245,28111.0,28110.0,0.02077498]
[1680650978421,0.08845,28111.0,28110.0,0.02077498]
[1680650978624,0.10945,28111.0,28110.0,0.02077498]
[1680650982563,0.097,28111.0,28110.0,0.47742947]
[1680650982771,0.097,28111.0,28110.0,0.48794747]
[1680650982772,0.021,28111.0,28110.0,0.48794747]
[1680650989092,0.021,28111.0,28110.0,0.91089747]
[1680650989321,0.021,28111.0,28110.0,1.01202423]
[1680650990003,0.021,28111.0,28110.0,1.13995059]
[1680650990480,0.021,28111.0,28110.0,1.01202423]
[1680650991186,0.16271506,28117.0,28110.0,1.01202423]
[1680650991381,0.16271506,28117.0,28111.0,0.32556781]
[1680650991630,0.16271506,28117.0,28112.0,0.010516]
[1680650991850,0.16271506,28117.0,28113.0,0.1]
[1680650992071,0.16271506,28117.0,28114.0,0.008069]
[1680650992258,0.16271506,28117.0,28111.0,0.1]
[1680650992509,0.16471506,28117.0,28112.0,0.015813]
[1680650992738,0.16271506,28117.0,28113.0,0.007773]
[1680650992982,0.15723486,28116.0,28114.0,0.0224]
[1680650993424,0.15774486,28116.0,28115.0,0.010278]
[1680650993639,0.15774486,28116.0,28114.0,0.0174]
[1680650994272,0.15774486,28116.0,28115.0,0.01008]
[1680650994522,0.15874486,28116.0,28114.0,0.0224]
[1680650994718,0.15874486,28116.0,28115.0,0.010358]
[1680650995193,0.15874486,28116.0,28114.0,0.0224]
[1680650995415,0.15774486,28116.0,28115.0,0.010617]
[1680650995614,0.15874486,28116.0,28115.0,0.010617]
[1680650995727,0.15874486,28116.0,28114.0,0.0174]
[1680650995930,0.15874486,28116.0,28115.0,0.010045]
[1680650996174,0.15874486,28116.0,28114.0,0.39625038]
[1680650996869,0.15874486,28116.0,28115.0,0.010322]
[1680650997306,0.15774486,28116.0,28115.0,0.010322]
[1680650998645,0.15874486,28116.0,28115.0,0.010322]
[1680650998858,0.15774486,28116.0,28115.0,0.010322]
[1680650999093,0.15874486,28116.0,28115.0,0.010322]
[1680650999521,0.1584737,28116.0,28115.0,0.010382]
[1680650999733,0.1581137,28116.0,28115.0,0.010822]
[1680651001087,0.1581137,28116.0,28114.0,0.39643038]
[1680651001308,0.001,28116.0,28114.0,0.39643038]
[1680651001537,0.001,28116.0,28114.0,0.39625038]
[1680651001981,0.16802581,28117.0,28114.0,0.39637038]
[1680651002204,0.16802581,28117.0,28114.0,0.0224]
[1680651002205,0.013448,28116.0,28114.0,0.0224]
[1680651002424,0.26067475,28116.0,28114.0,0.0224]
[1680651002653,0.048747,28115.0,28114.0,0.0224]
[1680651002848,0.012448,28115.0,28114.0,0.0224]
[1680651003218,0.112448,28115.0,28114.0,0.0174]
[1680651003432,0.2517965,28115.0,28114.0,0.0174]
[1680651003624,0.1517965,28115.0,28114.0,0.0174]
[1680651005193,0.1657965,28115.0,28114.0,0.0174]
[1680651007001,0.1517965,28115.0,28114.0,0.0174]
[1680651007224,0.1727965,28115.0,28112.0,0.21238669]
[1680651007442,0.1727965,28115.0,28114.0,0.0095]
[1680651007443,0.033958,28115.0,28114.0,0.0095]
[1680651007668,0.033448,28115.0,28114.0,0.0095]
[1680651007891,0.021,28115.0,28114.0,0.0095]
[1680651008085,0.012958,28116.0,28114.0,0.0095]
[1680651008381,0.007,28115.0,28114.0,0.0095]
[1680651008833,0.24159629,28115.0,28114.0,0.0095]
[1680651009057,0.26310629,28115.0,28114.0,0.0095]
[1680651009725,0.24210629,28115.0,28114.0,0.0095]
[1680651009950,0.26310629,28115.0,28114.0,0.0095]
[1680651010173,0.24210629,28115.0,28114.0,0.0095]
[1680651010391,0.26310629,28115.0,28114.0,0.0095]
[1680651010845,0.24210629,28115.0,28114.0,0.0095]
[1680651011083,0.26310629,28115.0,28114.0,0.0095]
[1680651011303,0.27772467,28115.0,28114.0,0.0095]
[1680651011529,0.29872467,28115.0,28114.0,0.0095]
[1680651012389,0.26310629,28115.0,28114.0,0.0095]
[1680651012619,0.24210629,28115.0,28114.0,0.0095]
[1680651013059,0.00051,28115.0,28114.0,0.0095]
[1680651013273,0.021,28115.0,28114.0,0.019911]
[1680651013530,0.08491,28116.0,28114.0,0.0095]
[1680651013749,0.021,28115.0,28114.0,0.0095]
[1680651014191,0.02151,28115.0,28114.0,0.0095]
[1680651014434,0.23879252,28115.0,28114.0,0.0095]
[1680651014653,0.23930252,28115.0,28114.0,0.0095]
[1680651015308,0.26030252,28115.0,28114.0,0.0095]
[1680651016062,0.28130252,28115.0,28114.0,0.0095]
[1680651016291,0.23930252,28115.0,28114.0,0.0095]
[1680651016457,0.26030252,28115.0,28114.0,0.0095]
[1680651016677,0.23930252,28115.0,28114.0,0.0095]
[1680651016881,0.26030252,28115.0,28114.0,0.0095]
[1680651018030,0.23930252,28115.0,28114.0,0.0095]
[1680651018247,0.26030252,28115.0,28114.0,0.0095]
[1680651018469,0.23930252,28115.0,28114.0,0.0095]
[1680651018592,0.00051,28115.0,28114.0,0.0095]
[1680651018814,0.021,28115.0,28114.0,0.0095]
[1680651019015,0.08491,28116.0,28114.0,0.0095]
[1680651019452,0.021,28115.0,28114.0,0.27064806]
[1680651019733,0.00051,28115.0,28114.0,0.27064806]
[1680651019904,0.021,28115.0,28114.0,0.26849926]
[1680651020328,0.021,28115.0,28114.0,0.4749473]
[1680651020727,0.00051,28116.0,28114.0,0.4749473]
[1680651020933,0.00051,28116.0,28115.0,0.008221]
[1680651022361,0.02751,28116.0,28115.0,0.008221]
[1680651022581,0.00051,28116.0,28115.0,0.008221]
[1680651023020,0.00051,28116.0,28115.0,0.24795851]
[1680651023235,0.00051,28116.0,28115.0,0.25725851]
[1680651023706,0.00151,28116.0,28115.0,0.25725851]
[1680651024804,0.00051,28116.0,28115.0,0.25725851]
[1680651025023,0.00151,28116.0,28115.0,0.021521]
[1680651025243,0.001,28116.0,28115.0,0.0133]
[1680651025431,0.00151,28116.0,28115.0,0.023694]
[1680651027015,0.00051,28116.0,28115.0,0.019694]
[1680651027254,0.00151,28116.0,28115.0,0.019694]
[1680651027465,0.00051,28116.0,28115.0,0.019694]
[1680651027692,0.00151,28116.0,28115.0,0.019694]
[1680651027913,0.00051,28116.0,28115.0,0.019694]
[1680651028129,0.00151,28116.0,28115.0,0.019694]
[1680651028355,0.00151,28116.0,28115.0,0.0093]
[1680651028612,0.00151,28116.0,28115.0,0.019994]
[1680651029060,0.00051,28116.0,28115.0,0.0093]
[1680651029278,0.00151,28116.0,28115.0,0.019778]
[1680651029496,0.00051,28116.0,28115.0,0.019778]
[1680651029718,0.00151,28116.0,28115.0,0.019778]
[1680651029990,0.26660998,28117.0,28115.0,0.019778]
[1680651030213,0.001,28116.0,28115.0,0.0093]
[1680651030433,0.26660998,28117.0,28115.0,0.019672]
[1680651030654,0.26660998,28117.0,28115.0,0.0093]
[1680651030655,0.001,28116.0,28115.0,0.0093]
[1680651030858,0.26660998,28117.0,28115.0,0.0093]
[1680651030859,0.26660998,28117.0,28115.0,0.019919]
[1680651031174,0.26660998,28117.0,28115.0,0.0093]
[1680651032064,0.26660998,28117.0,28115.0,0.019877]
[1680651032286,0.26660998,28117.0,28115.0,0.0093]
[1680651032529,0.27360998,28117.0,28116.0,0.009841]
[1680651032750,0.26660998,28117.0,28115.0,0.0093]
[1680651032964,0.27360998,28117.0,28116.0,0.009959]
[1680651033175,0.26660998,28117.0,28116.0,0.009959]
[1680651033387,0.27360998,28117.0,28115.0,0.0093]
[1680651033604,0.27360998,28117.0,28116.0,0.010752]
[1680651033834,0.26660998,28117.0,28116.0,0.0094]
[1680651034049,0.26660998,28117.0,28116.0,0.020413]
[1680651034699,0.28060998,28117.0,28116.0,0.020413]
[1680651035375,0.26660998,28117.0,28116.0,0.020413]
[1680651035608,0.28060998,28117.0,28116.0,0.020413]
[1680651035830,0.26660998,28117.0,28116.0,0.020413]
[1680651036043,0.28060998,28117.0,28116.0,0.020413]
[1680651036380,0.26660998,28117.0,28116.0,0.020413]
[1680651036595,0.28060998,28117.0,28116.0,0.020413]
[1680651036810,0.28075998,28117.0,28116.0,0.020413]
[1680651037027,0.28100698,28117.0,28116.0,0.020413]
[1680651037467,0.28100698,28117.0,28116.0,0.0094]
[1680651037468,0.28060998,28117.0,28116.0,0.0094]
[1680651038176,0.28060998,28117.0,28116.0,0.019606]
[1680651038871,0.41965548,28117.0,28116.0,0.0094]
[1680651039089,0.37786008,28117.0,28116.0,0.0094]
[1680651039756,0.18135525,28117.0,28116.0,0.0094]
[1680651039980,0.66609139,28117.0,28116.0,0.0094]
[1680651040209,0.67021539,28117.0,28116.0,0.0094]
[1680651040440,0.57021539,28117.0,28116.0,0.0094]
[1680651040656,0.50500339,28117.0,28116.0,0.0094]
[1680651041104,0.52600339,28117.0,28116.0,0.0094]
[1680651041585,0.45589824,28117.0,28116.0,0.0094]
[1680651042669,0.1058031,28117.0,28116.0,0.0094]
[1680651042916,0.021,28117.0,28116.0,0.31148061]
[1680651043148,0.021,28117.0,28116.0,0.31158061]
[1680651044535,0.021,28117.0,28116.0,0.0094]
[1680651044974,0.021,28117.0,28116.0,0.019563]
[1680651045669,0.33461411,28117.0,28116.0,0.019563]
[1680651047399,0.021,28117.0,28116.0,0.019563]
[1680651047623,0.021,28117.0,28116.0,0.0094]
[1680651048159,0.29319536,28117.0,28116.0,0.0094]
[1680651048764,0.29343536,28117.0,28116.0,0.0094]
[1680651048969,0.29319536,28117.0,28116.0,0.0094]
[1680651050679,0.29359236,28117.0,28116.0,0.0094]
[1680651050901,0.2026501,28117.0,28116.0,0.0094]
[1680651051129,0.64057709,28117.0,28116.0,0.0094]
[1680651051566,0.86717559,28117.0,28116.0,0.0094]
[1680651052250,0.75877559,28117.0,28116.0,0.0094]
[1680651052460,0.66859149,28117.0,28116.0,0.0094]
[1680651052891,0.54199299,28117.0,28116.0,0.0094]
[1680651053144,0.76859149,28117.0,28116.0,0.0094]
[1680651053363,0.64199299,28117.0,28116.0,0.0094]
[1680651053794,0.97793194,28117.0,28116.0,0.0094]
[1680651054012,0.0758,28116.0,28111.0,0.00018]
[1680651054234,0.0758,28116.0,28110.0,0.02066891]
[1680651054235,0.088449,28115.0,28110.0,0.33031268]
[1680651054719,0.088449,28115.0,28111.0,0.4131752]
[1680651054926,0.088449,28115.0,28111.0,0.4133552]
[1680651055774,0.090449,28115.0,28111.0,0.4133552]
[1680651055985,0.088449,28115.0,28111.0,0.4133552]
[1680651056195,0.089449,28115.0,28111.0,0.4183552]
[1680651056406,0.26221001,28114.0,28111.0,0.4183552]
[1680651056622,0.27465901,28114.0,28111.0,0.4133552]
[1680651057283,0.27465901,28114.0,28111.0,0.4183552]
[1680651057493,0.27465901,28114.0,28111.0,0.4133552]
[1680651057709,0.27565901,28114.0,28111.0,0.4183552]
[1680651058824,0.27605601,28114.0,28112.0,0.0092]
[1680651059052,0.27541704,28113.0,28112.0,0.00938]
[1680651059824,0.35131704,28113.0,28112.0,0.00938]
[1680651060023,0.35231704,28113.0,28112.0,0.01338]
[1680651060444,0.27541704,28113.0,28112.0,0.00938]
[1680651060638,0.28241704,28113.0,28112.0,0.00938]
[1680651060900,0.91630214,28113.0,28112.0,0.00018]
[1680651061112,0.97746344,28113.0,28110.0,0.02084891]
[1680651061317,0.0758,28111.0,28110.0,0.02066891]
[1680651061522,0.39373069,28111.0,28110.0,0.02066891]
[1680651061735,0.34561269,28111.0,28110.0,0.02066891]
[1680651062559,0.32071169,28111.0,28110.0,0.02066891]
[1680651063595,0.34095169,28111.0,28110.0,0.02066891]
[1680651063807,0.34071169,28111.0,28110.0,0.02066891]
[1680651065588,0.34071169,28111.0,28110.0,0.03366891]
[1680651065802,0.39139769,28111.0,28110.0,0.03366891]
[1680651066030,0.34071169,28111.0,28110.0,0.02066891]
[1680651066276,0.38948669,28111.0,28110.0,0.02066891]
[1680651068119,0.34071169,28111.0,28110.0,0.02066891]
[1680651068833,0.34110869,28111.0,28110.0,0.02066891]
[1680651069701,0.096197,28111.0,28110.0,0.02066891]
[1680651069931,0.0958,28111.0,28110.0,0.06986891]
[1680651071526,0.0758,28111.0,28110.0,0.06986891]
[1680651071749,0.0958,28111.0,28110.0,0.06986891]
[1680651071997,0.0758,28111.0,28110.0,0.06986891]
[1680651072427,0.0958,28111.0,28110.0,0.06986891]
[1680651072698,0.0758,28111.0,28110.0,0.06986891]
[1680651073140,0.0958,28111.0,28110.0,0.06986891]
[1680651073358,0.0758,28111.0,28110.0,0.06986891]